fUST/lending_fUST_20250708
["ID","MTS","AMOUNT","RATE_DAILY","PERIOD"]
[370349035,1751973055252,-460.0,0.00019452,2]
[370349036,1751973055261,-460.0,0.00019452,2]
[370349037,1751973055270,-460.0,0.00019452,2]
[370349038,1751973055280,-2954.56,0.00019452,2]
[370349039,1751973055289,-460.0,0.00019452,2]
[370349040,1751973055299,-460.0,0.00019452,2]
[370349041,1751973055308,-460.0,0.00019452,2]
[370349042,1751973055317,-460.0,0.00019452,2]
[370349043,1751973055326,-2151.11,0.00019452,2]
[370349044,1751973055336,-460.0,0.00019452,2]
[370349045,1751973055345,-546.82026914,0.00019452,2]
[370349046,1751973055354,-460.0,0.00019452,2]
[370349047,1751973055363,-460.0,0.00019452,2]
[370349048,1751973055372,-460.0,0.00019452,2]
[370349049,1751973055381,-460.0,0.00019452,2]
[370349050,1751973055391,-3513.89,0.00019452,2]
[370349051,1751973055401,-1215.68,0.00019452,2]
[370349052,1751973055412,-460.0,0.00019452,2]
[370349053,1751973055421,-460.0,0.00019452,2]
[370349054,1751973055431,-564.22,0.00019452,2]
[370349055,1751973055440,-1038.13,0.00019452,2]
[370349056,1751973055449,-151.0,0.00019452,2]
[370349057,1751973055459,-501.3,0.00019452,2]
[370349058,1751973055468,-460.0,0.00019452,2]
[370349059,1751973055478,-460.0,0.00019452,2]
[370349060,1751973055487,-460.0,0.00019452,2]
[370349061,1751973055496,-471.88,0.00019452,2]
[370349062,1751973055506,-603.61,0.00019452,2]
[370349063,1751973055515,-460.0,0.00019452,2]
[370349064,1751973055524,-460.0,0.00019452,2]
[370349065,1751973055534,-460.0,0.00019452,2]
[370349066,1751973055543,-460.0,0.00019452,2]
[370349067,1751973055553,-460.0,0.00019452,2]
[370349068,1751973055562,-460.0,0.00019452,2]
[370349069,1751973055571,-460.0,0.00019452,2]
[370349070,1751973055580,-460.0,0.00019452,2]
[370349071,1751973055590,-460.0,0.00019452,2]
[370349072,1751973055599,-424.98801689,0.00019452,2]
[370349073,1751973055609,-2333.14,0.00019452,2]
[370349074,1751973055618,-1867.32,0.00019452,2]
[370349075,1751973055627,-460.0,0.00019452,2]
[370349076,1751973055636,-460.0,0.00019452,2]
[370349077,1751973055647,-460.0,0.00019452,2]
[370349078,1751973055657,-2562.68,0.00019452,2]
[370349079,1751973055667,-151.0,0.00019452,2]
[370349080,1751973055676,-460.0,0.00019452,2]
[370349081,1751973055685,-460.0,0.00019452,2]
[370349082,1751973055694,-655.33,0.00019452,2]
[370349083,1751973055704,-5248.22,0.00019452,2]
[370349084,1751973055713,-460.0,0.00019452,2]
[370349085,1751973055722,-460.0,0.00019452,2]
[370349086,1751973055731,-151.0,0.00019452,2]
[370349087,1751973055740,-460.0,0.00019452,2]
[370349088,1751973055750,-460.0,0.00019452,2]
[370349089,1751973055759,-460.0,0.00019452,2]
[370349090,1751973055768,-460.0,0.00019452,2]
[370349091,1751973055777,-460.0,0.00019452,2]
[370349092,1751973055787,-460.0,0.00019452,2]
[370349093,1751973055795,-460.0,0.00019452,2]
[370349094,1751973055805,-1681.23,0.00019452,2]
[370349095,1751973055815,-460.0,0.00019452,2]
[370349096,1751973055825,-460.0,0.00019452,2]
[370349097,1751973055834,-460.0,0.00019452,2]
[370349098,1751973055843,-460.0,0.00019452,2]
[370349099,1751973055853,-460.0,0.00019452,2]
[370349100,1751973055863,-460.0,0.00019452,2]
[370349101,1751973055873,-460.0,0.00019452,2]
[370349102,1751973055882,-151.0,0.00019452,2]
[370349103,1751973055891,-151.0,0.00019452,2]
[370349104,1751973055901,-460.0,0.00019452,2]
[370349105,1751973055910,-460.0,0.00019452,2]
[370349106,1751973055920,-783.7,0.00019452,2]
[370349107,1751973055929,-2252.41,0.00019452,2]
[370349108,1751973055938,-460.0,0.00019452,2]
[370349109,1751973055947,-460.0,0.00019452,2]
[370349110,1751973055956,-151.0,0.00019452,2]
[370349111,1751973055965,-466.71,0.00019452,2]
[370349112,1751973055974,-460.0,0.00019452,2]
[370349113,1751973055984,-460.0,0.00019452,2]
[370349114,1751973055993,-460.0,0.00019452,2]
[370349115,1751973056002,-580.0,0.00019452,2]
[370349116,1751973056012,-460.0,0.00019452,2]
[370349117,1751973056021,-177.63496735,0.00019452,2]
[370349118,1751973056031,-395.5141809,0.00019452,2]
[370349119,1751973056041,-460.0,0.00019452,2]
[370349120,1751973056050,-151.0,0.00019452,2]
[370349121,1751973056060,-151.0,0.00019452,2]
[370349122,1751973056068,-151.0,0.00019452,2]
[370349123,1751973056078,-460.0,0.00019452,2]
[370349124,1751973056088,-510.5725108,0.00019452,2]
[370349125,1751973056097,-460.0,0.00019452,2]
[370349126,1751973056107,-460.0,0.00019452,2]
[370349127,1751973056117,-151.0,0.00019452,2]
[370349128,1751973056127,-151.0,0.00019452,2]
[370349129,1751973056136,-151.0,0.00019452,2]
[370349130,1751973056147,-151.0,0.00019452,2]
[370349131,1751973056156,-460.0,0.00019452,2]
[370349132,1751973056165,-308.97872252,0.00019452,2]
[370349133,1751973056175,-515.0,0.00019452,2]
[370349134,1751973056184,-428.6046964,0.00019452,2]
[370349135,1751973056193,-428.6046964,0.00019452,2]
[370349136,1751973056289,-153.0,0.00019452,2]
[370349137,1751973056299,-153.0,0.00019452,2]
[370349138,1751973056309,-576.1435385,0.00019452,2]
[370349139,1751973056318,-310.61771,0.00019452,2]
[370349140,1751973056329,-576.1435385,0.00019452,2]
[370349141,1751973056338,-346.37802681,0.00019461,2]
[370349142,1751973056347,-500.0,0.00019473,2]
[370349143,1751973056356,-500.0,0.00019473,2]
[370349144,1751973056366,-500.0,0.00019473,2]
[370349145,1751973056375,-500.0,0.00019473,2]
[370349146,1751973056384,-500.0,0.00019473,2]
[370349147,1751973056394,-500.0,0.00019473,2]
[370349148,1751973056403,-378.43686624,0.00019473,2]
[370349149,1751973056413,-500.0,0.00019473,2]
[370349150,1751973056422,-500.0,0.00019473,2]
[370349151,1751973056431,-620.22751085,0.00019473,2]
[370349152,1751973056440,-500.0,0.00019473,2]
[370349153,1751973056449,-500.0,0.00019473,2]
[370349154,1751973056459,-453.03388965,0.00019473,2]
[370349155,1751973056469,-500.0,0.00019473,2]
[370349156,1751973056478,-500.0,0.00019473,2]
[370349157,1751973056487,-500.43123072,0.00019473,2]
[370349158,1751973056496,-500.0,0.00019473,2]
[370349159,1751973056505,-500.0,0.00019473,2]
[370349160,1751973056514,-500.0,0.00019473,2]
[370349161,1751973056524,-506.99798333,0.00019473,2]
[370349162,1751973056533,-499.77118882,0.00019473,2]
[370349163,1751973056542,-500.0,0.00019473,2]
[370349164,1751973056551,-500.0,0.00019473,2]
[370349165,1751973056561,-503.4067074,0.00019473,2]
[370349166,1751973056570,-603.52143687,0.00019473,2]
[370349167,1751973056579,-500.0,0.00019473,2]
[370349168,1751973056588,-572.50543433,0.00019473,2]
[370349169,1751973056598,-500.0,0.00019473,2]
[370349170,1751973056607,-500.0,0.00019473,2]
[370349171,1751973056616,-500.0,0.00019473,2]
[370349172,1751973056625,-177.239221,0.00019473,2]
[370349173,1751973056634,-177.239221,0.00019473,2]
[370349174,1751973056645,-151.0,0.00019473,2]
[370349175,1751973056654,-349.865224,0.00019473,2]
[370349176,1751973056663,-349.865224,0.00019473,2]
[370349177,1751973056672,-151.0,0.00019473,2]
[370349178,1751973056682,-151.0,0.00019473,2]
[370349179,1751973056691,-236.361195,0.00019473,2]
[370349180,1751973056701,-151.0,0.00019473,2]
[370349181,1751973056712,-226.629318,0.00019473,2]
[370349182,1751973056721,-641.0,0.000195,2]
[370349183,1751973056730,-1000.0,0.000195,2]
[370349184,1751973056740,-800.0,0.00019554,2]
[370349185,1751973056749,-151.0,0.00019554,2]
[370349186,1751973056759,-151.0,0.00019554,2]
[370349187,1751973056767,-4028.0,0.00019572,2]
[370349188,1751973056777,-800.0,0.00019599,2]
[370349189,1751973056786,-169795.85613845,0.000196,2]
[370349191,1751973485444,1000.0,0.00027,120]
[370349193,1751973535029,-187.446289,0.00018354,2]
[370349194,1751973538277,-300.0,0.00018354,2]
[370349195,1751973542849,-500.0,0.00018354,2]
[370349196,1751973544750,-151.40454334,0.00018354,2]
[370349197,1751973548972,-209.15682302,0.00018354,2]
[370349198,1751973550920,-43.85995354,0.00018354,2]
[370349199,1751973550945,-187.5264728,0.000189,2]
[370349200,1751973550973,-150.12165877,0.00019078,2]
[370349201,1751973550996,-118.49191489,0.00019166,2]
[370349202,1751973576062,-88.90808511,0.00019166,2]
[370349203,1751973576084,-74.50974315,0.00019168,3]
[370349204,1751973578955,-231.66403414,0.00019168,3]
[370349205,1751973583679,-196.74389267,0.00019168,3]
[370349206,1751973586816,-243.90233004,0.00019168,3]
[370349207,1751973586838,-118.9266358,0.00019168,3]
[370349208,1751973622343,-207.4,0.00019166,2]
[370349209,1751973622366,-231.50113427,0.00019166,2]
[370349210,1751973652353,-203.2039935,0.00019166,2]
[370349211,1751973654789,-65.29487223,0.00019166,2]
[370349212,1751973654811,-171.4281128,0.00019166,2]
[370349213,1751973697237,-331.0274436,0.00019067,2]
[370349214,1751973699533,-288.80931988,0.00019067,2]
[370349215,1751973701780,-183.72149123,0.00019067,2]
[370349216,1751973706647,-325.85579292,0.00019067,2]
[370349217,1751973711273,-401.74900713,0.00019067,2]
[370349218,1751973715497,-150.0,0.000189,2]
[370349219,1751973715520,-86.92950277,0.00019067,2]
[370349220,1751973715542,-223.07049723,0.00019165,2]
[370349221,1751973717789,-76.92950277,0.00019165,2]
[370349222,1751973717813,-328.5718872,0.00019166,2]
[370349223,1751973717836,-54.49861003,0.00019166,2]
[370349224,1751973719431,-180.16146449,0.00019166,2]
[370349225,1751973723647,-274.97940933,0.00019165,2]
[370349226,1751973751792,-25.02059067,0.00019165,2]
[370349227,1751973751815,-265.33992548,0.00019166,2]
[370349228,1751973751837,-169.63948385,0.00019166,2]
[370349229,1751973755832,-330.36051615,0.00019166,2]
[370349230,1751973755855,-121.26072948,0.00019166,2]
[370349231,1751973780321,-157.17563894,0.00019166,2]
[370349232,1751973782695,-191.38543658,0.00019166,2]
[370349233,1751973785515,-30.178195,0.00019166,2]
[370349234,1751973785540,-129.75627409,0.00019166,2]
[370349235,1751973789311,-370.24372591,0.00019166,2]
[370349236,1751973789335,-44.10919524,0.00019166,2]
[370349237,1751973791352,-276.99331779,0.00019166,2]
[370349238,1751973795077,-300.0,0.00019165,2]
[370349239,1751973795102,-10.72936752,0.00019166,2]
[370349240,1751973798091,-168.16811945,0.00019166,2]
[370349241,1751973798114,-31.83365258,0.00019166,2]
[370349242,1751973832188,-925.0840607,0.00018975,2]
[370349243,1751973832210,-181.0259393,0.00019166,2]
[370349244,1751973835265,-300.0,0.00019166,2]
[370349245,1751973838400,-299.99822797,0.00019166,2]
[370349246,1751973842574,-249.93844555,0.00019166,2]
[370349247,1751973847398,-266.71829675,0.00019165,2]
[370349248,1751973849617,-615.01007625,0.00018973,2]
[370349249,1751973852007,-234.92659727,0.00018973,2]
[370349250,1751973852032,-33.28170325,0.00019165,2]
[370349251,1751973852056,-191.79169948,0.00019166,2]
[370349252,1751973853770,-311.09806117,0.00019166,2]
[370349253,1751973855452,-155.44047788,0.00019166,2]
[370349254,1751973857058,-385.18917768,0.00019166,2]
[370349255,1751973861456,-153.27325586,0.00019067,2]
[370349256,1751973861479,-100.7064139,0.00019166,2]
[370349257,1751973861503,-331.66740909,0.00019166,2]
[370349258,1751973863798,-136.49893833,0.00019166,2]
[370349259,1751973863820,-356.78099289,0.00019166,2]
[370349260,1751973866715,-143.21900711,0.00019166,2]
[370349261,1751973866738,-85.52367789,0.00019166,2]
[370349262,1751973868397,-155.44047788,0.00019166,2]
[370349263,1751973870680,-259.03584423,0.00019166,2]
[370349264,1751973870704,-40.96238374,0.00019166,2]
[370349265,1751973872996,-214.35114912,0.00019166,2]
[370349266,1751973874841,-200.20049456,0.00019166,2]
[370349267,1751973878200,-44.48597258,0.00019166,2]
[370349268,1751973878222,-125.08504421,0.00019166,2]
[370349269,1751973879871,-224.69415587,0.00018975,2]
[370349270,1751973882747,-169.57101679,0.00018975,2]
[370349271,1751973885268,-300.0,0.00018975,2]
[370349272,1751973888537,-272.32768136,0.00018975,2]
[370349273,1751973890236,-198.70489704,0.00018975,2]
[370349274,1751973893702,-137.81064986,0.00018975,2]
[370349275,1751973893724,-31.76036693,0.00019166,2]
[370349276,1751973896602,-123.23963307,0.00019166,2]
[370349277,1751973896624,-177.41014328,0.00019166,2]
[370349278,1751973899414,-169.57101679,0.00019166,2]
[370349279,1751973925233,-219.53189939,0.00018973,2]
[370349280,1751973927738,-321.20670461,0.00018973,2]
[370349281,1751973930664,-169.57101679,0.00018973,2]
[370349282,1751973946498,1444.0,0.00026137,120]
[370349284,1751973988939,171.4499886,0.00013699,2]
[370349286,1751973992316,-153.27316457,0.00018973,2]
[370349288,1751974087966,-158.72936752,0.00018973,2]
[370349292,1751974112633,-403.0942462,0.00018783,2]
[370349293,1751974115736,-301.18690228,0.00018783,2]
[370349297,1751974128415,68584.82562325,0.00018,2]
[370349298,1751974129369,150.999999,0.00025248,120]
[370349306,1751974232373,-717.63829321,0.00018783,2]
[370349307,1751974232383,-2188.63848584,0.00019067,2]
[370349308,1751974232393,-1586.07067389,0.00019078,2]
[370349309,1751974232403,-1200.0,0.00019164,2]
[370349310,1751974232413,-300.0,0.00019165,2]
[370349311,1751974232423,-300.0,0.00019165,2]
[370349312,1751974232433,-300.0,0.00019165,2]
[370349313,1751974232443,-1450.12562862,0.00019166,2]
[370349314,1751974232452,-7157.00560919,0.00019166,2]
[370349315,1751974232464,-3993.0177128,0.00019166,2]
[370349318,1751974232485,-3118.38131881,0.00019166,2]
[370349497,1751974242911,-23.66477989,0.00019166,2]
[370349531,1751974243653,-5596.24049222,0.00019166,2]
[370349532,1751974243708,-600.0,0.00019166,2]
[370349550,1751974246389,-2723.06447009,0.00019166,2]
[370349551,1751974340288,-150.0,0.000189,2]
[370349552,1751974340310,-226.15828449,0.00019077,2]
[370349553,1751974346554,-171.67886112,0.00019077,2]
[370349554,1751974349129,-213.21368555,0.00019077,2]
[370349555,1751974349153,-86.24430385,0.00019164,2]
[370349556,1751974353223,-213.75569615,0.00019164,2]
[370349557,1751974353245,-56.83443648,0.00019165,2]
[370349558,1751974359254,-268.37974879,0.00019165,2]
[370349559,1751974361328,-184.09872097,0.00019165,2]
[370349560,1751974364243,-275.62820438,0.00019165,2]
[370349561,1751974367145,-250.79596241,0.00019165,2]
[370349562,1751974369360,-164.26292697,0.00019165,2]
[370349563,1751974369383,-126.16605624,0.00019165,2]
[370349564,1751974371473,-33.83394376,0.00019165,2]
[370349565,1751974371497,-127.47719052,0.00019165,2]
[370349566,1751974373370,-158.72936752,0.00019165,2]
[370349567,1751974375269,-287.05775411,0.00019165,2]
[370349568,1751974376954,-204.95116927,0.00019165,2]
[370349569,1751974379007,-219.28612521,0.00019165,2]
[370349570,1751974380747,-269.19239366,0.00019165,2]
[370349571,1751974382958,-258.86315215,0.00019165,2]
[370349572,1751974389856,-168.36966351,0.00019165,2]
[370349573,1751974392151,-189.99250965,0.00019165,2]
[370349574,1751974395329,-279.75837531,0.00019165,2]
[370349575,1751974397548,-206.93225196,0.00019165,2]
[370349576,1751974399675,-206.96371619,0.00019165,2]
[370349577,1751974404210,-161.31113428,0.00019165,2]
[370349578,1751974408269,-275.90127903,0.00019165,2]
[370349579,1751974411694,-62.03589672,0.00019165,2]
[370349580,1751974411718,-185.13926435,0.00019166,2]
[370349581,1751974515678,-204.95116927,0.00018501,2]
[370349582,1751974520323,-49.15058973,0.00018501,2]
[370349583,1751974629974,-226.7506893,0.00018156,2]
[370349584,1751974641910,-287.05775411,0.00018156,2]
[370349585,1751974659016,-206.93225196,0.00018156,2]
[370349586,1751974672316,-275.62820438,0.00018156,2]
[370349587,1751974685427,-206.96371619,0.00018156,2]
[370349588,1751974700372,-250.79596241,0.00018156,2]
[370349589,1751974717365,-189.99250965,0.00018067,2]
[370349590,1751974728022,1444.0,0.00026137,120]
[370349591,1751974730774,-151.20243579,0.00018067,2]
[370349592,1751974730798,-117.177313,0.00018156,2]
[370349593,1751974746990,-168.36966351,0.00018156,2]
[370349594,1751974760929,-279.75837531,0.00018156,2]
[370349595,1751974776772,-60.23775933,0.00018156,2]
[370349596,1751974776794,-98.49160819,0.00018167,2]
[370349598,1751974794090,-160.0,0.00018167,2]
[370349599,1751974809366,-164.26292697,0.00018167,2]
[370349600,1751974821080,-161.31113428,0.00018167,2]
[370349601,1751974835340,-61.95580086,0.00018167,2]
[370349602,1751974835366,-122.14292011,0.00018501,2]
[370349603,1751974850482,-63.1897093,0.00018501,2]
[370349604,1751974888358,-266.53742252,0.0001859,2]
[370349606,1751975169341,-269.19239366,0.00018166,2]
[370349607,1751975181149,-213.75569615,0.00018166,2]
[370349608,1751975195377,-386.34034267,0.00018166,2]
[370349610,1751975210977,-299.4579894,0.00018166,2]
[370349611,1751975226935,-226.15828449,0.00018166,2]
[370349612,1751975240351,-171.67886112,0.00018166,2]
[370349613,1751975257361,-75.90788341,0.00018166,2]
[370349614,1751975257384,-202.6422152,0.00018306,2]
[370349661,1751975432760,-302.66710251,0.00019,2]
[370349663,1751975432771,-1057.38044926,0.00019078,2]
[370349665,1751975432780,-611.05083116,0.00019078,2]
[370349667,1751975432790,-800.0,0.00019117,2]
[370349669,1751975432799,-773.86543165,0.00019154,2]
[370349671,1751975432811,-26.13456835,0.00019154,2]
[370349673,1751975432820,-207.4,0.00019155,2]
[370349675,1751975432829,-344.21508907,0.00019155,2]
[370349677,1751975432841,-346.42691093,0.00019155,2]
[370349679,1751975432851,-300.0,0.00019162,2]
[370349681,1751975432860,-300.0,0.00019162,2]
[370349683,1751975432870,-300.0,0.00019162,2]
[370349685,1751975432881,-1200.0,0.00019162,2]
[370349687,1751975432891,-160.0,0.00019163,2]
[370349689,1751975432901,-211.85755872,0.00019163,2]
[370349692,1751975432912,-1456.5102093,0.00019163,2]
[370349694,1751975432928,-1408.45421107,0.00019163,2]
[370349696,1751975432938,-1200.0,0.00019164,2]
[370349698,1751975432947,-279.90126691,0.00019165,2]
[370349700,1751975432957,-966.75041908,0.00019166,2]
[370349702,1751975432967,-500.0,0.00019166,2]
[370349704,1751975432976,-500.0,0.00019166,2]
[370349706,1751975432985,-500.0,0.00019166,2]
[370349708,1751975432995,-500.0,0.00019166,2]
[370349710,1751975433004,-488.32108329,0.00019166,2]
[370349712,1751975433016,-11.67891671,0.00019166,2]
[370349713,1751975433026,-500.0,0.00019166,2]
[370349714,1751975433036,-500.0,0.00019166,2]
[370349715,1751975433045,-500.0,0.00019166,2]
[370349717,1751975433055,-500.0,0.00019166,2]
[370349719,1751975433064,-500.0,0.00019166,2]
[370349720,1751975433074,-500.0,0.00019166,2]
[370349721,1751975433083,-500.0,0.00019166,2]
[370349722,1751975433092,-500.0,0.00019166,2]
[370349723,1751975433102,-500.0,0.00019166,2]
[370349724,1751975433112,-500.0,0.00019166,2]
[370349725,1751975433121,-500.0,0.00019166,2]
[370349726,1751975433131,-500.0,0.00019166,2]
[370349727,1751975433141,-500.0,0.00019166,2]
[370349728,1751975433150,-500.0,0.00019166,2]
[370349729,1751975433161,-308.26391827,0.00019166,2]
[370349730,1751975433170,-500.0,0.00019166,2]
[370349731,1751975433180,-3915.70240396,0.00019166,2]
[370349732,1751975433189,-325.32,0.00019168,3]
[370349733,1751975433200,-162.66,0.00019168,3]
[370349734,1751975433209,-488.0,0.00019168,3]
[370349735,1751975433219,-500.0,0.00019173,2]
[370349736,1751975433230,-500.0,0.00019173,2]
[370349737,1751975433240,-500.0,0.00019173,2]
[370349738,1751975433250,-500.68323197,0.00019173,2]
[370349739,1751975433259,-500.0,0.00019173,2]
[370349740,1751975433269,-500.0,0.00019173,2]
[370349741,1751975433278,-500.0,0.00019173,2]
[370349742,1751975433289,-500.0,0.00019173,2]
[370349743,1751975433299,-500.0,0.00019173,2]
[370349744,1751975433308,-500.0,0.00019173,2]
[370349745,1751975433318,-500.0,0.00019173,2]
[370349746,1751975433327,-500.0,0.00019177,2]
[370349747,1751975433337,-432.95569564,0.00019177,2]
[370349748,1751975433346,-500.0,0.00019177,2]
[370349749,1751975433356,-500.0,0.00019177,2]
[370349750,1751975433366,-500.0,0.00019177,2]
[370349751,1751975433375,-500.0,0.00019177,2]
[370349752,1751975433385,-500.0,0.00019177,2]
[370349753,1751975433394,-500.0,0.00019177,2]
[370349754,1751975433404,-500.0,0.00019177,2]
[370349755,1751975433414,-200.79830598,0.00019177,2]
[370349756,1751975433423,-1069.53980932,0.00019177,2]
[370349757,1751975433433,-1069.53980932,0.00019177,2]
[370349758,1751975433443,-1069.53980932,0.00019177,2]
[370349759,1751975433453,-1069.53980932,0.00019177,2]
[370349760,1751975433463,-1069.53980932,0.00019177,2]
[370349761,1751975433473,-1069.53980932,0.00019177,2]
[370349762,1751975433483,-1069.53980932,0.00019177,2]
[370349763,1751975433493,-1069.53980932,0.00019177,2]
[370349764,1751975433502,-1069.53980932,0.00019177,2]
[370349765,1751975433512,-1069.53980932,0.00019177,2]
[370349766,1751975433526,-1069.53980932,0.00019177,2]
[370349767,1751975433536,-1069.53980932,0.00019177,2]
[370349768,1751975433546,-1069.53980932,0.00019177,2]
[370349769,1751975433558,-1069.53980932,0.00019177,2]
[370349770,1751975433568,-1069.53980932,0.00019177,2]
[370349771,1751975433578,-1064.19211027,0.00019177,2]
[370349772,1751975433587,-1064.19211027,0.00019177,2]
[370349773,1751975433598,-1064.19211027,0.00019177,2]
[370349774,1751975433608,-1064.19211027,0.00019177,2]
[370349775,1751975433617,-2554.71149551,0.00019178,2]
[370349776,1751975433627,-460.0,0.00019178,2]
[370349777,1751975433637,-460.0,0.00019178,2]
[370349778,1751975433647,-460.0,0.00019178,2]
[370349779,1751975433656,-460.0,0.00019178,2]
[370349780,1751975433665,-460.0,0.00019178,2]
[370349781,1751975433675,-460.0,0.00019178,2]
[370349782,1751975433685,-460.0,0.00019178,2]
[370349783,1751975433695,-328.21502439,0.00019178,2]
[370349784,1751975433704,-501.46424297,0.00019178,2]
[370349785,1751975433714,-460.0,0.00019178,2]
[370349786,1751975433724,-460.0,0.00019178,2]
[370349787,1751975433734,-587.97668222,0.00019178,2]
[370349788,1751975433743,-460.0,0.00019178,2]
[370349789,1751975433753,-460.0,0.00019178,2]
[370349790,1751975433764,-460.0,0.00019178,2]
[370349791,1751975433774,-460.0,0.00019178,2]
[370349792,1751975433784,-460.0,0.00019178,2]
[370349793,1751975433793,-460.0,0.00019178,2]
[370349794,1751975433803,-461.44317948,0.00019178,2]
[370349795,1751975433813,-460.0,0.00019178,2]
[370349796,1751975433823,-460.0,0.00019178,2]
[370349797,1751975433833,-460.0,0.00019178,2]
[370349798,1751975433843,-461.51627156,0.00019178,2]
[370349799,1751975433852,-460.0,0.00019178,2]
[370349800,1751975433862,-460.0,0.00019178,2]
[370349801,1751975433872,-460.0,0.00019178,2]
[370349802,1751975433882,-368.97961122,0.00019178,2]
[370349803,1751975433891,-460.62832319,0.00019178,2]
[370349804,1751975433901,-460.0,0.00019178,2]
[370349805,1751975433911,-460.0,0.00019178,2]
[370349806,1751975433921,-460.79452111,0.00019178,2]
[370349807,1751975433931,-461.49991213,0.00019178,2]
[370349808,1751975433941,-596.28683847,0.00019178,2]
[370349809,1751975433951,-460.0,0.00019178,2]
[370349810,1751975433961,-460.0,0.00019178,2]
[370349811,1751975433971,-460.0,0.00019178,2]
[370349812,1751975433982,-461.83957333,0.00019178,2]
[370349813,1751975433992,-201.14919503,0.00019178,2]
[370349814,1751975434120,-460.0,0.00019178,2]
[370349815,1751975434134,-461.89911162,0.00019178,2]
[370349816,1751975434144,-460.0,0.00019178,2]
[370349817,1751975434154,-460.0,0.00019178,2]
[370349818,1751975434164,-460.0,0.00019178,2]
[370349819,1751975434174,-460.0,0.00019178,2]
[370349820,1751975434183,-463.66922719,0.00019178,2]
[370349821,1751975434192,-460.0,0.00019178,2]
[370349822,1751975434202,-460.0,0.00019178,2]
[370349823,1751975434212,-460.0,0.00019178,2]
[370349824,1751975434222,-460.000001,0.00019178,2]
[370349825,1751975434232,-460.0,0.00019178,2]
[370349826,1751975434241,-460.0,0.00019178,2]
[370349827,1751975434251,-460.0,0.00019178,2]
[370349828,1751975434260,-460.0,0.00019178,2]
[370349829,1751975434270,-460.0,0.00019178,2]
[370349830,1751975434279,-460.0,0.00019178,2]
[370349831,1751975434288,-460.0,0.00019178,2]
[370349832,1751975434298,-460.0,0.00019178,2]
[370349833,1751975434309,-460.0,0.00019178,2]
[370349834,1751975434319,-460.0,0.00019178,2]
[370349835,1751975434329,-501.13340853,0.00019178,2]
[370349836,1751975434338,-247.03172145,0.00019178,2]
[370349837,1751975434348,-460.0,0.00019178,2]
[370349838,1751975434357,-460.0,0.00019178,2]
[370349839,1751975434366,-461.53677414,0.00019178,2]
[370349840,1751975434376,-460.0,0.00019178,2]
[370349841,1751975434385,-460.0,0.00019178,2]
[370349842,1751975434395,-460.0,0.00019178,2]
[370349843,1751975434404,-460.0,0.00019178,2]
[370349844,1751975434414,-460.0,0.00019178,2]
[370349845,1751975434423,-460.0,0.00019178,2]
[370349846,1751975434433,-460.83879775,0.00019178,2]
[370349847,1751975434443,-460.0,0.00019178,2]
[370349848,1751975434453,-460.0,0.00019178,2]
[370349849,1751975434462,-460.0,0.00019178,2]
[370349850,1751975434471,-460.0,0.00019178,2]
[370349851,1751975434482,-460.0,0.00019178,2]
[370349852,1751975434491,-460.0,0.00019178,2]
[370349853,1751975434500,-460.0,0.00019178,2]
[370349854,1751975434510,-460.0,0.00019178,2]
[370349855,1751975434522,-460.0,0.00019178,2]
[370349856,1751975434532,-460.0,0.00019178,2]
[370349857,1751975434541,-460.0,0.00019178,2]
[370349858,1751975434551,-460.0,0.00019178,2]
[370349859,1751975434560,-460.0,0.00019178,2]